Cogmind - Beta 13 @@@ ROGUE MODE // 2024.07.03 @ 19:24:04 Player: maykstuff Result: Destroyed by S-10 Pest with Light Assault Rifle Performance ------------- Evolutions (0) 0 Regions Visited (2) 400 Robots Destroyed (29) 145 Value Destroyed (641) 641 Prototype IDs (4) 80 Alien Tech Used (0) 0 Bonus (0) 0 TOTAL SCORE: 1266 Bonus ------- None Cogmind --------- Core Integrity 0/250 Matter 291/300 Energy 100/125 System Corruption 3% Temperature Cool (60) Movement Rolling (100) Location -10/Mines Parts ------- > --- POWER (1) -------- Light Ion Engine > --- PROPULSION (2) --- Compact Wheel Compact Wheel > --- UTILITY (2) ------ Small Storage Unit Signal Interpreter > --- WEAPON (2) ------- Particle Gun > --- INVENTORY (8) ---- Compact Wheel Compact Wheel Flight Unit Flight Unit Flight Unit High-capacity Storage Unit Sensor Array Datajack Peak State ------------ > --- POWER ------------ Light Nuclear Core > --- PROPULSION ------- Compact Wheel Compact Wheel > --- UTILITY ---------- Improved Heat Sink Small Storage Unit > --- WEAPON ----------- Particle Gun Assault Rifle > --- INVENTORY -------- Ion Engine Wheel Compact Wheel Flight Unit Flight Unit Flight Unit High-capacity Storage Unit Small Laser [Rating: 12] Favorites ----------- Power Ion Engine Engine Ion Engine Power Core Light Nuclear Core Propulsion Compact Wheel Wheel Compact Wheel Utility Small Storage Unit Device Improved Heat Sink Storage Small Storage Unit Processor Signal Interpreter Weapon Particle Gun Energy Gun Particle Gun Ballistic Gun Assault Rifle Launcher Grenade Launcher Build | -11 -10 -10 ------- Run | Yrd Mat Min Slots Evolved . | . . . Power . | . . . Propulsion . | . . . Utility . | . . . Weapon . | . . . Parts Attached 15 | 6 8 1 Power 4 | 1 2 1 Engine 3 | 1 1 1 Core 1 | . 1 . Reactor . | . . . Propulsion 3 | 2 1 . Treads . | . . . Leg . | . . . Wheel 3 | 2 1 . Hover . | . . . Flight . | . . . Utility 3 | 1 2 . Device 1 | . 1 . Storage 1 | 1 . . Processor 1 | . 1 . Hackware . | . . . Protection . | . . . Artifact . | . . . Weapon 5 | 2 3 . Energy Gun 2 | 1 1 . Energy Cannon . | . . . Ballistic Gun 2 | 1 1 . Ballistic Cannon . | . . . Launcher 1 | . 1 . Special Weapon . | . . . Impact Weapon . | . . . Slashing Weapon . | . . . Piercing Weapon . | . . . Special Melee Weapon . | . . . Unidentified Prototypes . | . . . Parts Lost 3 | . 3 . Power 1 | . 1 . Propulsion . | . . . Utility . | . . . Weapon 2 | . 2 . Highest Loss Streak 1 | . 1 . To Critical Strikes . | . . . Average Slot Usage (%) 92 | . 93 82 Engine 5 | . 5 11 Core 5 | . 5 . Wheel 28 | . 28 28 Device 5 | . 6 . Storage 14 | . 14 14 Processor 7 | . 6 14 Energy Gun 14 | . 14 14 Ballistic Gun 7 | . 8 . Launcher 3 | . 4 . Naked Turns . | . . . Heaviest Build 16 | 13 16 11 Greatest Support 32 | 26 32 32 Greatest Overweight (x) . | . . . Average Overweight (x) . | . . . Largest Inventory Capacity 8 | 8 8 8 Average Capacity 7 | 7 8 8 Most Carried 8 | 6 8 8 Average Carried 7 | 3 7 8 Final Capacity 8 | 8 8 8 Final Carried 8 | 6 8 8 Class Distribution -------------------- 54% | Mutant 45% | Scavenger-Mutant Dominant Class ---------------- Mutant | -10/Materials Scavenger-Mutant | -10/Mines Resources | -11 -10 -10 ----------- Run | Yrd Mat Min Matter Collected 551 | 272 269 10 Remotely . | . . . Salvage Created 876 | 87 675 114 Parts 68 | 3 50 15 Haulers Intercepted . | . . . Recyclers Shooed . | . . . Parts Field Recycled . | . . . Retrieved Matter . | . . . Parts Self-Destructed . | . . . Prevented . | . . . Kills | -11 -10 -10 ------- Run | Yrd Mat Min Combat Hostiles Destroyed 19 | . 17 2 Guns 15 | . 13 2 AOE 4 | . 4 . Classes Destroyed 7 | 1 5 1 Worker 2 | . 2 . Tunneler 2 | . . 2 Recycler 2 | 1 . 1 Mechanic 1 | . 1 . Watcher 3 | . 3 . Swarmer 5 | . 3 2 Grunt 14 | . 14 . Best Kill Streak 6 | 1 6 3 Combat Bots Only 3 | . 3 2 Max Kills in Single Turn 2 | 1 2 1 Gunslinging . | . . . Exploded 2 | . 2 . Melee . | . . . Uniques/NPCs Destroyed . | . . . Combat | -11 -10 -10 -------- Run | Yrd Mat Min Hostile Shots Fired 91 | . 84 7 Missed 24 | . 22 2 Damage Taken 719 | . 682 37 Core 251 | . 245 6 Absorbed by Shields . | . . . Core Remaining (%) 100 | 100 . . Volleys Fired 83 | 4 67 12 Largest 2 | 2 2 1 Hottest 95 | 60 95 65 Shots Fired 135 | 8 115 12 Gun 128 | 8 108 12 Cannon . | . . . Launcher 7 | . 7 . Special . | . . . Kinetic 45 | 4 41 . Thermal 83 | 4 67 12 Explosive 7 | . 7 . Electromagnetic . | . . . Robot Hit Streak 8 | 4 8 5 Robot Miss Streak 4 | 1 4 2 Penetration Max . | . . . Secondary Targets 3 | . 3 . Max Gunslinging Chain 1 | . 1 . Shots Hit Robots 77 | 6 64 7 Core Hits 46 | 2 39 5 Critical Kills . | . . . Critical Parts Destroyed . | . . . Critical Strikes 1 | . . 1 Burn 1 | . . 1 Melee Attacks . | . . . Impact . | . . . Slashing . | . . . Piercing . | . . . Sneak Attacks . | . . . Combat Hostiles . | . . . Follow-up Attacks . | . . . Damage Inflicted 1463 | 77 1273 113 Guns 975 | 77 785 113 Cannons . | . . . Explosions 479 | . 479 . Melee . | . . . Ramming 9 | . 9 . Kinetic 339 | 41 298 . Thermal 636 | 36 487 113 Explosive 479 | . 479 . Electromagnetic . | . . . Impact . | . . . Slashing . | . . . Piercing . | . . . Highest Corruption 3 | . 3 3 Average Corruption 1 | . 1 3 Corruption Purged . | . . . Corruption Blocked . | . . . Effects 7 | . 5 2 Message Errors 1 | . 1 . Matter Fused 2 | . 1 1 Heat Flow Errors 2 | . 2 . Energy Discharges 2 | . 1 1 Overload Shots . | . . . Overflow Damage . | . . . Projectiles . | . . . Explosions . | . . . Melee . | . . . Knockbacks . | . . . Impact . | . . . Kinetic . | . . . Secondary . | . . . Self-Inflicted Damage 4 | . 4 . Shots . | . . . Rammed 2 | . 2 . Targets Rammed 2 | . 2 . Kicked . | . . . Crushed . | . . . Highest Temperature 277 | . 277 60 Average Temperature 95 | . 107 26 Received Heat Transfer 321 | . 321 . Siege Activations . | . . . Robots Corrupted . | . . . Combat Hostiles . | . . . Parts Fried . | . . . Impact Corruptions . | . . . Robots Melted . | . . . Combat Hostiles . | . . . Parts Melted . | . . . Heat Transferred 1548 | 75 1140 333 Parts Sabotaged . | . . . Parts Stolen . | . . . Parts Stripped . | . . . Power Chain Reactions . | . . . Alert | -11 -10 -10 ------- Run | Yrd Mat Min Peak Influence 372 | 5 372 141 Initial 86 | . 3 86 Average 165 | 1 189 100 Maximum Alert Level 1 | . 1 . Low Security (%) 62 | 100 53 100 Level 1 37 | . 46 . Level 2 . | . . . Level 3 . | . . . Level 4 . | . . . Level 5 . | . . . High Security . | . . . Max Security . | . . . Squads Dispatched 4 | . 4 . Investigation 3 | . 3 . Extermination . | . . . Reinforcement 1 | . 1 . Assault . | . . . Garrison . | . . . Intercept . | . . . Searches Triggered . | . . . Construction Impeded . | . . . Haulers Reinforced . | . . . Active Scanning Responses . | . . . Cargo Convoy Interrupts . | . . . Stealth | -11 -10 -10 --------- Run | Yrd Mat Min Distress Signals 3 | . 3 . Communications Jammed . | . . . Distress Signals . | . . . Times Spotted 29 | . 26 3 Peak Tracking Total 4 | . 4 3 Tactical Retreats 2 | . 2 . Traps | -11 -10 -10 ------- Run | Yrd Mat Min Traps Triggered 3 | . 3 . Indirectly . | . . . Trap Hack Attempts . | . . . Triggered . | . . . Disarmed . | . . . Reprogrammed . | . . . Reused . | . . . Traps Extracted . | . . . Installed . | . . . Triggered . | . . . Machines | -11 -10 -10 ---------- Run | Yrd Mat Min Machines Disabled . | . . . Max in Single Turn . | . . . Machines Repaired . | . . . Machines Dismantled . | . . . Machines Sabotaged . | . . . Overloaded Fab Kills . | . . . Hacking | -11 -10 -10 --------- Run | Yrd Mat Min Machines Accessed 7 | . 7 . Terminals 5 | . 5 . Fabricators . | . . . Repair Stations 1 | . 1 . Recycling Units 1 | . 1 . Scanalyzers . | . . . Garrison Access . | . . . Total Hacks 24 | . 24 . Successful 7 | . 7 . Failed 17 | . 17 . Catastrophic 4 | . 4 . Database Lockouts . | . . . Manual 1 | . 1 . Terminals 18 | . 18 . Fabricators . | . . . Repair Stations 3 | . 3 . Recycling Units 3 | . 3 . Scanalyzers . | . . . Garrison Access . | . . . Terminal Hacks 4 | . 4 . Prototype ID Bank 2 | . 2 . Emergency Access Points 1 | . 1 . Hauler Manifests 1 | . 1 . Fabricator Hacks . | . . . Repair Station Hacks 1 | . 1 . Scan Component 1 | . 1 . Recycling Unit Hacks 2 | . 2 . Report Inventory 1 | . 1 . Retrieve Components 1 | . 1 . Scanalyzer . | . . . Garrison Access Hacks . | . . . Unauthorized Hacks . | . . . Terminals . | . . . Fabricators . | . . . Repair Stations . | . . . Recycling Units . | . . . Scanalyzers . | . . . Garrison Access . | . . . Data Cores Recovered . | . . . Used . | . . . Hacking Detections 6 | . 6 . Full Trace Events 5 | . 5 . Feedback Events 1 | . 1 . Corruption 1 | . 1 . Feedback Blocked . | . . . Robot Schematics Acquired . | . . . Robots Built . | . . . Authchips . | . . . Time . | . . . Total Robot Build Rating . | . . . Part Schematics Acquired . | . . . Parts Built . | . . . Authchips . | . . . Time . | . . . Total Part Build Rating . | . . . Parts Repaired . | . . . Time . | . . . Parts Recycled . | . . . Recycled Matter . | . . . Retrieved Matter . | . . . Retrieved Components 10 | . 10 . Parts Scanalyzed . | . . . Part Schematics Acquired . | . . . Parts Damaged . | . . . Bothacking | -11 -10 -10 ------------ Run | Yrd Mat Min Used RIF Installer . | . . . Robots Hacked . | . . . Non-combat . | . . . Combat . | . . . Robot Hacks Applied . | . . . Relay Couplers Released . | . . . Fabnet Peak Effective % . | . . . Robots Rewired . | . . . Allies Hacked . | . . . Hacks Repelled . | . . . Allies | -11 -10 -10 -------- Run | Yrd Mat Min Total Allies . | . . . Largest Group . | . . . Highest-Rated Group . | . . . Highest-Rated Ally . | . . . Total Orders . | . . . Ally Attacks . | . . . Total Damage . | . . . Kills . | . . . Allies Corrupted . | . . . Allies Melted . | . . . Intel | -11 -10 -10 ------- Run | Yrd Mat Min Robot Analysis Total . | . . . Derelict Logs Recovered 1 | . . 1 Drone Launches . | . . . Drone Recoveries . | . . . Exploration | -11 -10 -10 ------------- Run | Yrd Mat Min Turns Passed 1024 | 74 834 116 Spaces Moved 769 | 54 624 91 Core 9 | 9 . . Treads . | . . . Legs . | . . . Wheels 760 | 45 624 91 Hover . | . . . Flight . | . . . Fastest Speed 50 | 50 90 100 Average Speed 97 | 83 98 100 Slowest Speed 100 | 90 100 100 Overloaded Moves . | . . . Propulsion Burnouts . | . . . Robots Hopped . | . . . Cave-ins Triggered . | . . . Exploration Rate (%) 44 | 5 94 34 Regions Visited 2 Branch Regions 1 Pre-discovered Areas . | . . . Known Exits Taken 1 | . 1 . Unknown Exits Taken 1 | 1 . . Scrap Searched . | . . . Spaces Dug . | . . . Terrain Destroyed 47 | . 47 . Melee . | . . . Projectile . | . . . AOE 47 | . 47 . Terrain Rammed . | . . . Walls Destroyed . | . . . Machines Disabled . | . . . Actions | -11 -10 -10 --------- Run | Yrd Mat Min Total 907 | 73 730 104 Wait 12 | . 12 . Move 767 | 53 623 91 Hop . | . . . Pick Up 17 | 10 7 . Fast Attach 7 | 2 4 1 Attach 5 | 4 1 . Detach 2 | . 2 . Swap 3 | . 3 . Drop 9 | . 9 . Fire 83 | 4 67 12 Melee . | . . . Ram 2 | . 2 . Kick . | . . . Crush . | . . . Escape Stasis . | . . . Rewire . | . . . Trap . | . . . Miscellaneous . | . . . Route ------- -11/Scrapyard -10/Materials (discovered 4 exits: *Mat x3 / *Min) -10/Mines (discovered 1 exit: *Mat) History --------- Turn | Location | Event 2 | -11/Scrapyard | Met Revision 17 7 | -11/Scrapyard | Discovered new exit (range 16) 75 | -11/Scrapyard | Entered Materials 246 | -10/Materials | Discovered new exit (range 3) 305 | -10/Materials | Discovered new exit (range 10) 311 | -10/Materials | Build established: Mutant 367 | -10/Materials | Core integrity fell below 50% 614 | -10/Materials | Discovered new exit (range 13) 630 | -10/Materials | Core integrity fell below 20% 655 | -10/Materials | Build established: Scavenger-Mutant 663 | -10/Materials | Identified exit to Materials 754 | -10/Materials | Identified exit to Mines 780 | -10/Materials | Discovered exit to Materials (range 16) 909 | -10/Materials | Entered Mines 1025 | -10/Mines | Destroyed by S-10 Pest with Light Assault Rifle Last Messages --------------- 00863_ System corrupted: Matter fused (-6). 00879_ System corrupted: Energy discharge (-34). 00895_ Acquired 22 matter. LOCATION=MINES GOAL=ESCAPE Something is scanning the area. 00913_ T-07 Excavator destroyed. 00920_ T-07 Excavator suffers critical hit (Burn). 00920_ T-07 Excavator destroyed. 00925_ Acquired Lgt. Ion Engine. 00927_ Acquired 10 matter. 00932_ R-06 Scavenger destroyed. 00943_ K-01 Serf collects debris. 00959_ Acquired derelict log, extracted data. 00967_ System corrupted: Matter fused (-9). 00971_ K-01 Serf collects debris. 01020_ S-10 Pest destroyed. 01024_ System corrupted: Energy discharge (-25). 01024_ S-10 Pest destroyed. Map ----- +----------------------------------------------------+ | | | ?????????????????????????????????????????????????? | | ?????????????????????????????????????????????????? | | ?????????????????????????????????????????????????? | | ?????????????????????????????????????????????????? | | ?????????????????????????????????????????????????? | | ?????????????????????????????????????????????????? | | ?????????????????????????????????????????????????? | | ?????????????????????????????????????????????????? | | ?????????????????????????????????????????????????? | | ?????????????????????????????????????????????????? | | ?????????????????????????????????????????????????? | | ?????????????????????????????????????????????????? | | ?????????????????????????????????????????????????? | | ?????????????????????????????????????????????????? | | ????????????????##???????????????????????????????? | | ???????????????? ???????????????????????????????? | | ????????????????? ??????????????????????????????? | | ?????????????????# ??????????????????????????????? | | ?????????????????# ?????????????????????????????? | | ?????????????????? ?????????????????????????????? | | ??????????????????? ????????????????????????????? | | ???????????????????# ?????????####???????????????? | | ???????????????????# ??????## ##??????????????? | | ???????????????????# ####### #??????????????? | | ???????????????????# =%*=@ #??????????????? | | ???????????????????##=[s[ ##??????????????? | | ????????????????????#### ##???????????????? | | ???????????????????????## #????????????????? | | ????????????????????????### #????????????????? | | ??????????????????????????## #????????????????? | | ???????????????????????????# ##????????????????? | | ???????????????????????????# #######???????????? | | ??????????????????????????## #???????? | | ?????????????????????????## #######???????????? | | ?????????????????????????# ##???????? ????????? | | ????????????????????????## ###???????? #???????? | | ????????????????????????# ##?????????? #???????? | | ????????????????????????# #??????????? #???????? | | ????????????????????????# #??????????# #???????? | | ???????????????????????## #???#####??# #???????? | | ???????????????????##### #??## ##?# #???????? | | ??????????????????## #??# #?# #???????? | | ?????????????????## #??# #?# #???????? | | ?????????????????# #### #?# #???????? | | ????????????????# ## ## ### #???????? | | ???????????????# #### ## #???????? | | ???????????????# #??## ##??????? | | ???????????????## ##???#### ###????# | | ????????????????#####????????# ##??# | +----------------------------------------------------+ Best States ------------- Heat Dissipation 39 Energy Generation 14 Energy Capacity 250 Matter Stores 300 Matter Capacity 300 Sight Range 16 Terrain Scan Density 10 Evasion (%) 50 Item Schematics ----------------- None Robot Schematics ------------------ None Fabricated ------------ Nothing Alien Tech Used ----------------- None Achievements -------------- None Challenges ------------ None Game ------ Seed AssaultBehemothFlail Manual? 0 Play Time 00:14:52 Cumulative 6.9 hours Start 2024.07.03 @ 19:08:55 End 2024.07.03 @ 19:24:04 Sessions 1 Manual Loads 0 Difficulty Rogue Special Mode None Game No. 10 Rogue 10 Adventurer 0 Explorer 0 Win Type - Total 0 Types 0/0/0/0/0/0/0/0/0 Lore% 10 Gallery% 12 Achievement% 14 Wizard Run 0 Options --------- Layout 1 ASCII 1 Keyboard 0 Movement Numpad Keybinds 0 Fullscreen 1 Font 24/Proggy Map View 50x35 Zoom Use 0% Tactical HUD 1 Map Filters NONE Filters NONE Steam 0 RUN: 7d2514a9-1177-426c-82d4-168c36fcc139